Cogmind - Beta 10.2 @@@ ROGUE MODE // 2021.12.17 @ 22:15:49 Player: ORION Result: Destroyed by G-34 Mercenary with Small Laser Performance ------------- Evolutions (0) 0 Regions Visited (2) 400 Robots Destroyed (6) 30 Value Destroyed (230) 230 Prototype IDs (0) 0 Alien Tech Used (0) 0 Bonus (0) 0 TOTAL SCORE: 660 Bonus ------- None Cogmind --------- Core Integrity 0/250 Matter 300/300 Energy 100/100 System Corruption 0% Temperature Cool (6) Movement Core (200) Ox3 Location -10/Mines Parts ------- > --- POWER (1) -------- (None) > --- PROPULSION (2) --- (None) > --- UTILITY (2) ------ Small Storage Unit Medium Storage Unit > --- WEAPON (2) ------- (None) > --- INVENTORY (10) --- Ion Engine Light Ion Engine Aluminum Leg Aluminum Leg Aluminum Leg Improved Heat Sink Peak State ------------ > --- POWER ------------ Ion Engine > --- PROPULSION ------- Light Treads Light Treads > --- UTILITY ---------- Small Storage Unit Medium Storage Unit > --- WEAPON ----------- Medium Laser Light Assault Rifle > --- INVENTORY -------- Light Ion Engine Aluminum Leg Aluminum Leg [Rating: 7] Favorites ----------- Power Ion Engine Engine Ion Engine Propulsion Light Treads Treads Light Treads Utility Small Storage Unit Storage Small Storage Unit Weapon Medium Laser Energy Gun Medium Laser Ballistic Gun Light Assault Rifle Build | -11 -10 -10 ------- Run | Scr Mat Min Slots Evolved . | . . . Power . | . . . Propulsion . | . . . Utility . | . . . Weapon . | . . . Parts Attached 10 | 7 3 . Power 2 | 1 1 . Engine 2 | 1 1 . Core . | . . . Reactor . | . . . Propulsion 2 | 2 . . Treads 2 | 2 . . Leg . | . . . Wheel . | . . . Hover . | . . . Flight . | . . . Utility 2 | 1 1 . Device . | . . . Storage 2 | 1 1 . Processor . | . . . Hackware . | . . . Protection . | . . . Artifact . | . . . Weapon 4 | 3 1 . Energy Gun 2 | 2 . . Energy Cannon . | . . . Ballistic Gun 2 | 1 1 . Ballistic Cannon . | . . . Launcher . | . . . Special Weapon . | . . . Impact Weapon . | . . . Slashing Weapon . | . . . Piercing Weapon . | . . . Special Melee Weapon . | . . . Unidentified Prototypes . | . . . Parts Lost 6 | . 2 4 Power 1 | . . 1 Propulsion 2 | . . 2 Utility . | . . . Weapon 3 | . 2 1 Highest Loss Streak 3 | . 1 3 Average Slot Usage (%) 77 | . 85 62 Engine 12 | . 14 10 Treads 26 | . 28 23 Storage 20 | . 16 28 Energy Gun 11 | . 17 . Ballistic Gun 6 | . 8 1 Naked Turns . | . . . Heaviest Build 20 | 11 20 18 Greatest Support 40 | 40 40 40 Greatest Overweight (x) 3 | 2 . 3 Average Overweight (x) . | . . . Largest Inventory Capacity 10 | 6 10 10 Average Capacity 7 | 5 6 10 Most Carried 6 | 4 4 6 Average Carried 3 | 2 3 5 Final Capacity 10 | 6 10 10 Final Carried 6 | 4 3 6 Class Distribution -------------------- 100% | Mutant Dominant Class ---------------- Mutant | -10/Materials Mutant | -10/Mines Resources | -11 -10 -10 ----------- Run | Scr Mat Min Matter Collected 286 | 224 62 . Remotely . | . . . Salvage Created 246 | . 198 48 Parts 8 | . 5 3 Haulers Intercepted . | . . . Recyclers Shooed 1 | . 1 . Parts Field Recycled . | . . . Retrieved Matter . | . . . Parts Self-Destructed . | . . . Prevented . | . . . Kills | -11 -10 -10 ------- Run | Scr Mat Min Combat Hostiles Destroyed 6 | . 4 2 Melee 2 | . . 2 Guns 4 | . 4 . Classes Destroyed 1 | . 1 . Grunt 6 | . 4 2 Best Kill Streak 2 | . 2 2 Combat Bots Only 2 | . 2 2 Max Kills in Single Turn 1 | . 1 1 Gunslinging . | . . . Exploded . | . . . Melee 1 | . . 1 Uniques/NPCs Destroyed . | . . . Combat | -11 -10 -10 -------- Run | Scr Mat Min Damage Taken 941 | . 415 526 Core 254 | . 85 169 Absorbed by Shields . | . . . Core Remaining (%) 100 | 100 . . Volleys Fired 26 | . 22 4 Largest 2 | . 2 1 Hottest 100 | . 100 20 Shots Fired 40 | . 36 4 Gun 40 | . 36 4 Cannon . | . . . Launcher . | . . . Special . | . . . Kinetic 11 | . 7 4 Thermal 29 | . 29 . Explosive . | . . . Electromagnetic . | . . . Robot Hit Streak 16 | . 12 16 Robot Miss Streak 1 | . 1 . Penetration Max . | . . . Secondary Targets . | . . . Shots Hit Robots 32 | . 28 4 Core Hits 20 | . 11 9 Critical Hits . | . . . Critical Kills . | . . . Critical Parts Destroyed . | . . . Melee Attacks . | . . . Impact . | . . . Slashing . | . . . Piercing . | . . . Sneak Attacks . | . . . Combat Hostiles . | . . . Follow-up Attacks . | . . . Damage Inflicted 349 | . 295 54 Guns 325 | . 295 30 Cannons . | . . . Explosions . | . . . Melee . | . . . Ramming 24 | . . 24 Kinetic 74 | . 44 30 Thermal 251 | . 251 . Explosive . | . . . Electromagnetic . | . . . Impact . | . . . Slashing . | . . . Piercing . | . . . Highest Corruption . | . . . Average Corruption . | . . . Corruption Purged . | . . . Overload Shots . | . . . Overflow Damage . | . . . Projectiles . | . . . Explosions . | . . . Melee . | . . . Knockbacks . | . . . Impact . | . . . Kinetic . | . . . Secondary . | . . . Self-Inflicted Damage . | . . . Shots . | . . . Rammed 14 | . 1 13 Targets Rammed 16 | . 1 15 Kicked . | . . . Crushed 2 | . . 2 Highest Temperature 300 | . 300 15 Average Temperature 93 | . 98 12 Received Heat Transfer 444 | . 147 297 Siege Activations . | . . . Robots Corrupted . | . . . Combat Hostiles . | . . . Parts Fried . | . . . Impact Corruptions . | . . . Robots Melted . | . . . Combat Hostiles . | . . . Parts Melted 2 | . 2 . Heat Transferred 740 | . 740 . Parts Sabotaged . | . . . Parts Stolen . | . . . Parts Stripped . | . . . Power Chain Reactions . | . . . Missiles Intercepted . | . . . Alert | -11 -10 -10 ------- Run | Scr Mat Min Peak Influence 135 | . 135 88 Initial 48 | . . 48 Average 60 | . 75 76 Maximum Alert Level . | . . . Low Security (%) 100 | 100 100 100 Level 1 . | . . . Level 2 . | . . . Level 3 . | . . . Level 4 . | . . . Level 5 . | . . . High Security . | . . . Max Security . | . . . Squads Dispatched 1 | . 1 . Investigation . | . . . Extermination . | . . . Reinforcement 1 | . 1 . Assault . | . . . Garrison . | . . . Intercept . | . . . Construction Impeded . | . . . Haulers Reinforced . | . . . Stealth | -11 -10 -10 --------- Run | Scr Mat Min Distress Signals 2 | . 2 . Communications Jammed . | . . . Distress Signals . | . . . Times Spotted 13 | . 9 4 Peak Tracking Total 4 | . 4 2 Tactical Retreats . | . . . Traps | -11 -10 -10 ------- Run | Scr Mat Min Traps Triggered . | . . . Indirectly . | . . . Trap Hack Attempts . | . . . Triggered . | . . . Disarmed . | . . . Reprogrammed . | . . . Reused . | . . . Traps Extracted . | . . . Installed . | . . . Triggered . | . . . Machines | -11 -10 -10 ---------- Run | Scr Mat Min Machines Disabled . | . . . Max in Single Turn . | . . . Machines Sabotaged . | . . . Garrisons Compromised . | . . . Overloaded Fab Kills . | . . . Fab Network Shutdowns . | . . . Hacking | -11 -10 -10 --------- Run | Scr Mat Min Machines Accessed 1 | . 1 . Terminals 1 | . 1 . Fabricators . | . . . Repair Stations . | . . . Recycling Units . | . . . Scanalyzers . | . . . Garrison Access . | . . . Total Hacks 3 | . 3 . Successful 1 | . 1 . Failed 2 | . 2 . Catastrophic . | . . . Database Lockouts . | . . . Manual . | . . . Terminals 3 | . 3 . Fabricators . | . . . Repair Stations . | . . . Recycling Units . | . . . Scanalyzers . | . . . Garrison Access . | . . . Terminal Hacks 1 | . 1 . Alert Level 1 | . 1 . Fabricator Hacks . | . . . Repair Station Hacks . | . . . Recycling Unit Hacks . | . . . Scanalyzer . | . . . Garrison Access Hacks . | . . . Unauthorized Hacks . | . . . Terminals . | . . . Fabricators . | . . . Repair Stations . | . . . Recycling Units . | . . . Scanalyzers . | . . . Garrison Access . | . . . Data Cores Recovered . | . . . Used . | . . . Hacking Detections 1 | . 1 . Full Trace Events 1 | . 1 . Feedback Events . | . . . Feedback Blocked . | . . . Robot Schematics Acquired . | . . . Robots Built . | . . . Matter . | . . . Time . | . . . Total Robot Build Rating . | . . . Part Schematics Acquired . | . . . Parts Built . | . . . Matter . | . . . Time . | . . . Total Part Build Rating . | . . . Parts Repaired . | . . . Time . | . . . Parts Recycled . | . . . Recycled Matter . | . . . Retrieved Matter . | . . . Retrieved Components . | . . . Parts Scanalyzed . | . . . Part Schematics Acquired . | . . . Parts Damaged . | . . . Bothacking | -11 -10 -10 ------------ Run | Scr Mat Min Used RIF Installer . | . . . Robots Hacked . | . . . Non-combat . | . . . Combat . | . . . Robot Hacks Applied . | . . . Relay Couplers Released . | . . . Robots Rewired . | . . . Allies Hacked . | . . . Hacks Repelled . | . . . Allies | -11 -10 -10 -------- Run | Scr Mat Min Total Allies . | . . . Largest Group . | . . . Highest-Rated Group . | . . . Highest-Rated Ally . | . . . Total Orders . | . . . Ally Attacks . | . . . Total Damage . | . . . Kills . | . . . Allies Corrupted . | . . . Allies Melted . | . . . Intel | -11 -10 -10 ------- Run | Scr Mat Min Robot Analysis Total . | . . . Derelict Logs Recovered 2 | . . 2 Drone Launches . | . . . Drone Recoveries . | . . . Exploration | -11 -10 -10 ------------- Run | Scr Mat Min Turns Passed 529 | 111 285 133 Spaces Moved 264 | 67 136 61 Core 17 | 15 . 2 Treads 247 | 52 136 59 Legs . | . . . Wheels . | . . . Hover . | . . . Flight . | . . . Fastest Speed 50 | 50 160 160 Average Speed 156 | 144 160 161 Slowest Speed 200 | 160 160 200 Overloaded Moves . | . . . Propulsion Burnouts . | . . . Robots Hopped . | . . . Cave-ins Triggered . | . . . Exploration Rate (%) 14 | 5 23 16 Regions Visited 2 Branch Regions 1 Pre-discovered Areas . | . . . Known Exits Taken . | . . . Unknown Exits Taken 2 | 1 1 . Scrap Searched . | . . . Spaces Dug . | . . . Terrain Destroyed . | . . . Melee . | . . . Projectile . | . . . AOE . | . . . Terrain Rammed . | . . . Walls Destroyed . | . . . Machines Disabled . | . . . Actions | -11 -10 -10 --------- Run | Scr Mat Min Total 330 | 79 168 83 Wait 6 | . 6 . Move 262 | 66 135 61 Hop . | . . . Pick Up 7 | 4 . 3 Fast Attach 8 | 7 1 . Attach 1 | . 1 . Detach 1 | 1 . . Swap 1 | . 1 . Drop 2 | 1 1 . Fire 26 | . 22 4 Melee . | . . . Ram 4 | . . 4 Kick . | . . . Crush 12 | . 1 11 Escape Stasis . | . . . Rewire . | . . . Trap . | . . . Miscellaneous . | . . . Route ------- -11/Scrapyard -10/Materials -10/Mines History --------- Turn | Location | Event 17 | -11/Scrapyard | Discovered new exit (range 16) 112 | -11/Scrapyard | Entered Materials 318 | -10/Materials | Build established: Mutant 383 | -10/Materials | Discovered new exit (range 10) 397 | -10/Materials | Entered Mines 468 | -10/Mines | Learned Materials emergency access door positions 492 | -10/Mines | Learned Materials stockpile data 516 | -10/Mines | Core integrity fell below 50% 526 | -10/Mines | Core integrity fell below 20% 530 | -10/Mines | Destroyed by G-34 Mercenary with Small Laser Last Messages --------------- 00413_ Crushed G-47 Trooper. 00413_ G-47 Trooper destroyed. 00416_ Slammed into G-34 Mercenary. 00417_ Crushed G-34 Mercenary. 00417_ G-34 Mercenary destroyed. 00421_ Acquired Aluminum Leg. 00426_ Acquired Ion Engine. 00434_ Acquired Imp. Heat Sink. 00468_ Acquired derelict log, extracted data. Data stored: Materials emergency access points. 00492_ Ion Engine destroyed. 00492_ Acquired derelict log, extracted data. Data stored: Materials stockpile data. 00508_ Slammed into G-34 Mercenary. 00509_ Lgt. Treads destroyed. 00512_ Slammed into G-34 Mercenary. 00518_ Lgt. Treads destroyed. 00520_ Slammed into G-34 Mercenary. 00522_ K-01 Serf collects debris. 00528_ Slammed into G-47 Trooper. Map ----- +----------------------------------------------------+ | ?????????????????????????????????????????????????? | | ?????????????????????????????????????????????????? | | ?????????????????????????????????????????????????? | | ?????????????????????????????????????????????????? | | ?????????????????????????????????????????????????? | | ?????????????????????????????????????????????????? | | ?????????????????????????????????????????????????? | | ?????????????????????????????????? ??????????????? | | ???????????????????????# ??????? ????????????? | | ???????????????????????# ??????? ????????????? | | ???????????????????????# #?????? ?????????????? | | ???????????????????###?# r####??# ?????????????? | | ???????????????????? ## # ### #?????????????? | | ????????????????????? #?????????????? | | ???????????????###???? k #?????????????? | | ??????????????## ????# #?????????????? | | ?????????????## ????# #?????????????? | | ?????????????? #???# #?????????????? | | ???????????????? #?## #?????????????? | | ??????????????? ## ???????????????? | | ??????????????? #?????????????????? | | ??????????????? #?????????????????? | | ???????????????# #g ### #?????????????????? | | ???????????????????????# %#?# ###???????????????? | | ???????????????????????#%%### ##??????????????? | | ???????????????????????#%@## ##?????????????? | | ???????????????????????# g%% ###???????????? | | ???????????????????????#### #####???????? | | ??????????????????????????# #?????? | | ??????????????????????????# ## #????? | | ??????????????????????????# ##?# ?????? | | ??????????????????????????# #???# ??????? | | ??????????????????????????# ###### ??????? | | ??????????????????????????# # #? ???????? | | ??????????????????????????# ######### #??????????? | | ??????????????????????????# #????#### ###????????? | | ??????????????????????????# #????# #????????? | | ??????????????????????????# #????# #????????? | | ??????????????????????????# ????# #????????? | | ??????????????????????????###????# #????????? | | ?????????????????????????????????#%%% #????????? | | ?????????????????????????????????#% % #????????? | | ?????????????????????????????????########????????? | | ?????????????????????????????????????????????????? | | ?????????????????????????????????????????????????? | | ?????????????????????????????????????????????????? | | ?????????????????????????????????????????????????? | | | | | | | +----------------------------------------------------+ Best States ------------- Heat Dissipation 25 Energy Generation 10 Energy Capacity 250 Matter Stores 300 Matter Capacity 300 Sight Range 16 Terrain Scan Density 10 Evasion (%) 40 Recoil Reduction 2 Item Schematics ----------------- None Robot Schematics ------------------ None Fabricated ------------ Nothing Alien Tech Used ----------------- None Achievements -------------- None Challenges ------------ None Game ------ Seed WardroneThunderReactor Manual? 0 Play Time 00:13:19 Cumulative 16.5 hours Start 2021.12.17 @ 22:02:54 End 2021.12.17 @ 22:15:49 Sessions 1 Manual Loads 0 Difficulty Rogue Special Mode None Game No. 13 Rogue 8 Adventurer 0 Explorer 5 Win Type - Total 0 Types 0/0/0/0/0/0/0/0/0 Lore% 2 Gallery% 21 Achievement% 13 Wizard Run 0 Options --------- ASCII 0 Keyboard 1 Movement Vi Keybinds 0 Fullscreen 2 Font 18/Terminus Map View 76x50 Tactical HUD 1 Map Filters NONE Filters NONE Steam 1 RUN: d4e8dc3d-503f-4571-8b1b-2de846a9411b